[Event "*** Titled Tuesday Blitz"]
[Site "Chess.com"]
[Date "2021.04.20"]
[Round "4"]
[White "kai_nov"]
[Black "jraosam"]
[Result "1-0"]
[WhiteElo "2319"]
[BlackElo "1892"]
[TimeControl "180+1"]
[EndTime "10:38:04 PDT"]
[Termination "kai_nov won by checkmate"]

1. d4 {[%clk 0:03:00.9]} 1... d5 {[%clk 0:02:59.5]} 2. c4 {[%clk 0:02:58.5]}
2... e6 {[%clk 0:02:59.4]} 3. Nc3 {[%clk 0:02:55.6]} 3... Nf6 {[%clk 0:02:58.8]}
4. cxd5 {[%clk 0:02:54.5]} 4... exd5 {[%clk 0:02:56.3]} 5. Bg5 {[%clk
0:02:53.8]} 5... c6 {[%clk 0:02:53.6]} 6. e3 {[%clk 0:02:53.4]} 6... Be7 {[%clk
0:02:47.8]} 7. Bd3 {[%clk 0:02:52.7]} 7... h6 {[%clk 0:02:44.3]} 8. Bf4 {[%clk
0:02:48]} 8... Nbd7 {[%clk 0:02:43.4]} 9. h3 {[%clk 0:02:43.5]} 9... O-O {[%clk
0:02:41.3]} 10. Nf3 {[%clk 0:02:41.6]} 10... Re8 {[%clk 0:02:40.5]} 11. Qc2
{[%clk 0:02:38.1]} 11... b6 {[%clk 0:02:39.9]} 12. O-O-O {[%clk 0:02:34.7]}
12... Bb7 {[%clk 0:02:39.4]} 13. g4 {[%clk 0:02:32.5]} 13... c5 {[%clk
0:02:36.5]} 14. g5 {[%clk 0:02:18.8]} 14... hxg5 {[%clk 0:02:33.8]} 15. Nxg5
{[%clk 0:02:13.9]} 15... c4 {[%clk 0:02:31.9]} 16. Bf5 {[%clk 0:02:10.8]} 16...
Nf8 {[%clk 0:02:19.1]} 17. Rhg1 {[%clk 0:02:02.8]} 17... g6 {[%clk 0:02:14.9]}
18. Nxf7 {[%clk 0:01:41]} 18... Kxf7 {[%clk 0:02:12.6]} 19. Bxg6+ {[%clk
0:01:24.2]} 19... Nxg6 {[%clk 0:02:10.9]} 20. Qxg6+ {[%clk 0:01:23.4]} 20... Ke6
{[%clk 0:02:11.1]} 21. e4 {[%clk 0:01:09.9]} 21... Kd7 {[%clk 0:01:46.6]} 22.
Qf5+ {[%clk 0:01:04.9]} 22... Kc6 {[%clk 0:01:44.7]} 23. Qe6+ {[%clk 0:00:49.3]}
23... Bd6 {[%clk 0:01:42.8]} 24. exd5+ {[%clk 0:00:49.2]} 24... Nxd5 {[%clk
0:01:14.3]} 25. Qxd5+ {[%clk 0:00:47.6]} 25... Kc7 {[%clk 0:01:13.4]} 26. Nb5+
{[%clk 0:00:34.4]} 26... Kb8 {[%clk 0:01:10.2]} 27. Bxd6+ {[%clk 0:00:29.2]}
27... Kc8 {[%clk 0:01:09.8]} 28. Qf5+ {[%clk 0:00:26]} 28... Qd7 {[%clk
0:01:09.5]} 29. Qxd7+ {[%clk 0:00:24.2]} 29... Kxd7 {[%clk 0:01:10.4]} 30. Rg7+
{[%clk 0:00:24.3]} 30... Kc6 {[%clk 0:01:10.6]} 31. Rc7+ {[%clk 0:00:21.5]}
31... Kxb5 {[%clk 0:01:10.1]} 32. Rxb7 {[%clk 0:00:21.6]} 32... Re2 {[%clk
0:01:08.5]} 33. Bg3 {[%clk 0:00:20.5]} 33... Rh8 {[%clk 0:01:07.1]} 34. d5
{[%clk 0:00:19.9]} 34... Rxh3 {[%clk 0:01:04.8]} 35. d6 {[%clk 0:00:19.5]} 35...
c3 {[%clk 0:01:03.2]} 36. bxc3 {[%clk 0:00:18.5]} 36... Rh5 {[%clk 0:00:49.6]}
37. d7 {[%clk 0:00:17.8]} 37... Rc5 {[%clk 0:00:50.5]} 38. d8=Q {[%clk
0:00:16.7]} 38... Rxc3+ {[%clk 0:00:51.4]} 39. Kb1 {[%clk 0:00:17]} 39... Rcc2
{[%clk 0:00:51.9]} 40. Qd3+ {[%clk 0:00:16.6]} 40... Ka4 {[%clk 0:00:50.5]} 41.
Qxc2+ {[%clk 0:00:16.3]} 41... Rxc2 {[%clk 0:00:50.2]} 42. Kxc2 {[%clk
0:00:16.8]} 42... b5 {[%clk 0:00:50.8]} 43. Rxa7+ {[%clk 0:00:16.7]} 43... Kb4
{[%clk 0:00:51.1]} 44. Bd6+ {[%clk 0:00:16.9]} 44... Kc4 {[%clk 0:00:50.8]} 45.
a4 {[%clk 0:00:17.3]} 45... b4 {[%clk 0:00:50.2]} 46. Bxb4 {[%clk 0:00:17.1]}
46... Kxb4 {[%clk 0:00:46.8]} 47. Rc7 {[%clk 0:00:17.3]} 47... Ka5 {[%clk
0:00:46.1]} 48. Rd8 {[%clk 0:00:17.1]} 48... Kb6 {[%clk 0:00:45.3]} 49. Rdc8
{[%clk 0:00:16.6]} 49... Ka5 {[%clk 0:00:45]} 50. Rb8 {[%clk 0:00:16.3]} 50...
Ka6 {[%clk 0:00:43.7]} 51. Rd7 {[%clk 0:00:16.5]} 51... Ka5 {[%clk 0:00:41.5]}
52. Ra7# {[%clk 0:00:17]} 1-0

[Event "*** Titled Tuesday Blitz"]
[Site "Chess.com"]
[Date "2021.04.20"]
[Round "4"]
[White "ZAbdumalik"]
[Black "HackingKid98"]
[Result "1-0"]
[WhiteElo "2636"]
[BlackElo "2468"]
[TimeControl "180+1"]
[EndTime "10:38:07 PDT"]
[Termination "ZAbdumalik won on time"]

1. e4 {[%clk 0:03:00.9]} 1... c6 {[%clk 0:02:59.6]} 2. d4 {[%clk 0:03:01]} 2...
d5 {[%clk 0:03:00.5]} 3. Nd2 {[%clk 0:03:01.7]} 3... dxe4 {[%clk 0:03:00.3]} 4.
Nxe4 {[%clk 0:03:02.6]} 4... Bf5 {[%clk 0:03:00.6]} 5. Ng3 {[%clk 0:03:02.9]}
5... Bg6 {[%clk 0:03:00.8]} 6. h4 {[%clk 0:03:03.8]} 6... h6 {[%clk 0:03:00.9]}
7. Nh3 {[%clk 0:03:04.7]} 7... e6 {[%clk 0:02:45.5]} 8. Nf4 {[%clk 0:03:02]}
8... Bh7 {[%clk 0:02:44.8]} 9. Be3 {[%clk 0:03:01]} 9... Nf6 {[%clk 0:02:44.4]}
10. Bd3 {[%clk 0:02:59.7]} 10... Bxd3 {[%clk 0:02:43.1]} 11. Qxd3 {[%clk
0:03:00.6]} 11... Bd6 {[%clk 0:02:40.6]} 12. O-O {[%clk 0:02:58.7]} 12... Qc7
{[%clk 0:02:40.3]} 13. Nfh5 {[%clk 0:02:55.6]} 13... Bxg3 {[%clk 0:01:40.7]} 14.
Nxg3 {[%clk 0:02:32.3]} 14... Nbd7 {[%clk 0:01:37.1]} 15. c4 {[%clk 0:02:25.9]}
15... O-O-O {[%clk 0:01:35.3]} 16. b4 {[%clk 0:02:25.1]} 16... g5 {[%clk
0:01:34.1]} 17. h5 {[%clk 0:02:23.3]} 17... Ne5 {[%clk 0:01:18.9]} 18. Qa3
{[%clk 0:02:13.1]} 18... Nxc4 {[%clk 0:01:12.7]} 19. Qxa7 {[%clk 0:02:12.7]}
19... Nd5 {[%clk 0:00:20.6]} 20. Ne4 {[%clk 0:01:52]} 20... b5 {[%clk
0:00:19.4]} 21. Qa8+ {[%clk 0:01:47]} 21... Kd7 {[%clk 0:00:18.9]} 22. Nc5+
{[%clk 0:01:39.4]} 22... Ke7 {[%clk 0:00:18.8]} 23. Qb7 {[%clk 0:01:39.8]} 23...
Qxb7 {[%clk 0:00:18.5]} 24. Nxb7 {[%clk 0:01:40.2]} 24... Ra8 {[%clk 0:00:18]}
25. Bc1 {[%clk 0:01:35.2]} 25... Ra4 {[%clk 0:00:15.2]} 26. f4 {[%clk
0:01:33.4]} 26... gxf4 {[%clk 0:00:14]} 27. Bxf4 {[%clk 0:01:32.4]} 27... Nxf4
{[%clk 0:00:13.8]} 28. Rxf4 {[%clk 0:01:32.3]} 28... Rha8 {[%clk 0:00:14]} 29.
Raf1 {[%clk 0:01:30.1]} 29... f5 {[%clk 0:00:13.6]} 30. g4 {[%clk 0:01:30.4]}
30... Ne3 {[%clk 0:00:13.6]} 31. Re1 {[%clk 0:01:29.3]} 31... Nxg4 {[%clk
0:00:12.1]} 32. Nc5 {[%clk 0:01:29.3]} 32... Rxa2 {[%clk 0:00:10]} 33. Rxe6+
{[%clk 0:01:30]} 33... Kd8 {[%clk 0:00:08.4]} 34. Rxf5 {[%clk 0:01:28.8]} 34...
Ra1+ {[%clk 0:00:06.3]} 35. Kg2 {[%clk 0:01:29.1]} 35... R8a2+ {[%clk
0:00:06.1]} 36. Kf3 {[%clk 0:01:20]} 36... Rf2+ {[%clk 0:00:05.4]} 37. Ke4
{[%clk 0:01:09]} 37... Re1+ {[%clk 0:00:05.1]} 38. Kd3 {[%clk 0:01:09.5]} 38...
Rxe6 {[%clk 0:00:04.8]} 39. Nxe6+ {[%clk 0:01:09.2]} 39... Ke7 {[%clk
0:00:04.8]} 40. Nf4 {[%clk 0:01:04.1]} 40... Rf3+ {[%clk 0:00:03.6]} 41. Ke2
{[%clk 0:01:01.7]} 41... Re3+ {[%clk 0:00:03.5]} 42. Kd2 {[%clk 0:01:02]} 42...
Re4 {[%clk 0:00:03.4]} 43. Ne2 {[%clk 0:00:58.4]} 43... Ke6 {[%clk 0:00:03.6]}
44. Rf8 {[%clk 0:00:54.4]} 44... Kd6 {[%clk 0:00:03.4]} 45. Rg8 {[%clk
0:00:52.1]} 45... Nf6 {[%clk 0:00:02]} 46. Rg6 {[%clk 0:00:51.8]} 46... Ke6
{[%clk 0:00:02.7]} 47. Rxh6 {[%clk 0:00:52.1]} 47... Kf5 {[%clk 0:00:02.7]} 48.
Ng3+ {[%clk 0:00:51.3]} 48... Kg5 {[%clk 0:00:03.2]} 49. Rxf6 {[%clk 0:00:50.9]}
49... Rg4 {[%clk 0:00:02.4]} 50. Rg6+ {[%clk 0:00:50.1]} 1-0

[Event "*** Titled Tuesday Blitz"]
[Site "Chess.com"]
[Date "2021.04.20"]
[Round "4"]
[White "RiskyDecision"]
[Black "ARMQUEEN"]
[Result "1-0"]
[WhiteElo "2437"]
[BlackElo "2235"]
[TimeControl "180+1"]
[EndTime "10:38:07 PDT"]
[Termination "RiskyDecision won by checkmate"]

1. d4 {[%clk 0:03:00.7]} 1... Nf6 {[%clk 0:02:58.9]} 2. c4 {[%clk 0:03:00.8]}
2... c5 {[%clk 0:02:56.2]} 3. d5 {[%clk 0:03:00.3]} 3... e6 {[%clk 0:02:50.8]}
4. Nc3 {[%clk 0:02:59.6]} 4... exd5 {[%clk 0:02:50.5]} 5. cxd5 {[%clk
0:03:00.5]} 5... d6 {[%clk 0:02:50.6]} 6. Nf3 {[%clk 0:03:01]} 6... g6 {[%clk
0:02:48.6]} 7. Bf4 {[%clk 0:03:01.4]} 7... a6 {[%clk 0:02:48.1]} 8. a4 {[%clk
0:03:00.8]} 8... Bg7 {[%clk 0:02:47.4]} 9. e3 {[%clk 0:03:00.7]} 9... O-O {[%clk
0:02:47]} 10. Be2 {[%clk 0:03:01.1]} 10... Nbd7 {[%clk 0:02:46.6]} 11. O-O
{[%clk 0:03:00.3]} 11... Ne8 {[%clk 0:02:43.1]} 12. a5 {[%clk 0:02:57]} 12... f5
{[%clk 0:02:41.9]} 13. h3 {[%clk 0:02:39.9]} 13... Qe7 {[%clk 0:02:40.1]} 14.
Nd2 {[%clk 0:02:37.7]} 14... Ne5 {[%clk 0:02:37.6]} 15. Bh2 {[%clk 0:02:33.2]}
15... Nf6 {[%clk 0:02:35.4]} 16. f4 {[%clk 0:02:29.2]} 16... Nf7 {[%clk
0:02:35]} 17. Nc4 {[%clk 0:02:28.5]} 17... Bd7 {[%clk 0:02:32.6]} 18. Re1 {[%clk
0:02:26.5]} 18... Ne4 {[%clk 0:02:29.3]} 19. Nxe4 {[%clk 0:02:17.2]} 19... fxe4
{[%clk 0:02:24.5]} 20. g4 {[%clk 0:02:11.1]} 20... Bb5 {[%clk 0:02:02.7]} 21.
Rb1 {[%clk 0:02:09.4]} 21... Rad8 {[%clk 0:01:58.9]} 22. b4 {[%clk 0:02:08.8]}
22... cxb4 {[%clk 0:01:55.5]} 23. Rxb4 {[%clk 0:02:04.2]} 23... Rc8 {[%clk
0:01:55.1]} 24. Qd2 {[%clk 0:02:01.1]} 24... Qc7 {[%clk 0:01:47.9]} 25. Rc1
{[%clk 0:01:56.6]} 25... h6 {[%clk 0:01:28]} 26. Rc2 {[%clk 0:01:55.6]} 26... g5
{[%clk 0:01:26.7]} 27. Na3 {[%clk 0:01:54]} 27... Qxa5 {[%clk 0:01:23.4]} 28.
Bxb5 {[%clk 0:01:34.1]} 28... Qxa3 {[%clk 0:01:07.7]} 29. Rbc4 {[%clk
0:01:11.3]} 29... Rxc4 {[%clk 0:00:42.6]} 30. Bxc4 {[%clk 0:01:10.9]} 30... b5
{[%clk 0:00:42.3]} 31. Bf1 {[%clk 0:01:03.5]} 31... gxf4 {[%clk 0:00:42.5]} 32.
Bxf4 {[%clk 0:00:58.3]} 32... Ra8 {[%clk 0:00:19]} 33. Rc7 {[%clk 0:00:55.5]}
33... b4 {[%clk 0:00:17]} 34. Qc2 {[%clk 0:00:54.3]} 34... b3 {[%clk 0:00:16.5]}
35. Qxe4 {[%clk 0:00:53.8]} 35... b2 {[%clk 0:00:13.9]} 36. Bd3 {[%clk
0:00:53.8]} 36... Qa1+ {[%clk 0:00:13]} 37. Kg2 {[%clk 0:00:52.3]} 37... Qe1
{[%clk 0:00:08.8]} 38. Qh7+ {[%clk 0:00:26.5]} 38... Kf8 {[%clk 0:00:08.4]} 39.
Bxd6+ {[%clk 0:00:26]} 39... Nxd6 {[%clk 0:00:04.3]} 40. Qxg7+ {[%clk
0:00:25.1]} 40... Ke8 {[%clk 0:00:04.8]} 41. Qe7# {[%clk 0:00:25.4]} 1-0

[Event "*** Titled Tuesday Blitz"]
[Site "Chess.com"]
[Date "2021.04.20"]
[Round "4"]
[White "TimofeevAr"]
[Black "Zq1"]
[Result "1-0"]
[WhiteElo "2830"]
[BlackElo "2547"]
[TimeControl "180+1"]
[EndTime "10:38:08 PDT"]
[Termination "TimofeevAr won on time"]

1. c4 {[%clk 0:03:00.9]} 1... e6 {[%clk 0:02:59.4]} 2. b3 {[%clk 0:02:57.9]}
2... d5 {[%clk 0:02:58.9]} 3. Bb2 {[%clk 0:02:58.2]} 3... Nf6 {[%clk 0:02:56.4]}
4. Nf3 {[%clk 0:02:58.3]} 4... Be7 {[%clk 0:02:53.8]} 5. g3 {[%clk 0:02:54.4]}
5... O-O {[%clk 0:02:48]} 6. Bg2 {[%clk 0:02:54.5]} 6... c5 {[%clk 0:02:48.1]}
7. cxd5 {[%clk 0:02:53.7]} 7... Nxd5 {[%clk 0:02:37.7]} 8. O-O {[%clk
0:02:53.6]} 8... Nc6 {[%clk 0:02:37]} 9. d4 {[%clk 0:02:53.4]} 9... Bf6 {[%clk
0:02:28.1]} 10. e4 {[%clk 0:02:50.8]} 10... Ndb4 {[%clk 0:02:18.8]} 11. a3
{[%clk 0:02:48.1]} 11... Na6 {[%clk 0:02:14.9]} 12. e5 {[%clk 0:02:44.9]} 12...
Be7 {[%clk 0:02:13.5]} 13. Qe2 {[%clk 0:02:34.6]} 13... Qb6 {[%clk 0:02:02.6]}
14. Nbd2 {[%clk 0:02:32.7]} 14... Nxd4 {[%clk 0:01:51.8]} 15. Bxd4 {[%clk
0:02:28.3]} 15... cxd4 {[%clk 0:01:50.8]} 16. b4 {[%clk 0:02:28.3]} 16... Bd7
{[%clk 0:01:45.6]} 17. Nc4 {[%clk 0:02:27.5]} 17... Bb5 {[%clk 0:01:39.6]} 18.
Nxb6 {[%clk 0:02:25]} 18... Bxe2 {[%clk 0:01:38.9]} 19. Nxa8 {[%clk 0:02:25.1]}
19... Bxf1 {[%clk 0:01:38.7]} 20. Kxf1 {[%clk 0:02:24.4]} 20... Rxa8 {[%clk
0:01:37.9]} 21. Nxd4 {[%clk 0:02:24.5]} 21... Rd8 {[%clk 0:01:12.8]} 22. Nb5
{[%clk 0:02:24.1]} 22... Nb8 {[%clk 0:00:54.4]} 23. Bxb7 {[%clk 0:02:16.8]}
23... f6 {[%clk 0:00:45.1]} 24. Re1 {[%clk 0:02:13.1]} 24... Kf7 {[%clk
0:00:38]} 25. exf6 {[%clk 0:02:05.1]} 25... gxf6 {[%clk 0:00:36.9]} 26. Ke2
{[%clk 0:01:58.1]} 26... a6 {[%clk 0:00:35.4]} 27. Nc3 {[%clk 0:01:57.9]} 27...
Rd7 {[%clk 0:00:31.3]} 28. Bg2 {[%clk 0:01:54.7]} 28... Rc7 {[%clk 0:00:30.9]}
29. Kd3 {[%clk 0:01:52.4]} 29... Nd7 {[%clk 0:00:29.8]} 30. f4 {[%clk
0:01:52.1]} 30... Nb6 {[%clk 0:00:29.5]} 31. Ne4 {[%clk 0:01:31.7]} 31... Nc4
{[%clk 0:00:19]} 32. Ra1 {[%clk 0:01:31]} 32... Nb2+ {[%clk 0:00:17.3]} 33. Ke3
{[%clk 0:01:27.9]} 33... f5 {[%clk 0:00:13]} 34. Ng5+ {[%clk 0:01:20.3]} 34...
Bxg5 {[%clk 0:00:11.8]} 35. fxg5 {[%clk 0:01:21]} 35... Nc4+ {[%clk 0:00:10]}
36. Kd4 {[%clk 0:01:19.2]} 36... e5+ {[%clk 0:00:09.2]} 37. Kd5 {[%clk
0:01:10.4]} 37... Ne3+ {[%clk 0:00:08.7]} 38. Kd6 {[%clk 0:01:10.6]} 38... Rc2
{[%clk 0:00:08]} 39. Bb7 {[%clk 0:01:05.3]} 39... e4 {[%clk 0:00:06.4]} 40. Bxa6
{[%clk 0:01:04]} 40... Rxh2 {[%clk 0:00:05.7]} 41. a4 {[%clk 0:01:01.8]} 41...
Nc2 {[%clk 0:00:05]} 42. Rb1 {[%clk 0:00:56.8]} 42... Rd2+ {[%clk 0:00:04.7]}
43. Ke5 {[%clk 0:00:56.3]} 43... e3 {[%clk 0:00:04.5]} 44. Kxf5 {[%clk
0:00:52.5]} 44... e2 {[%clk 0:00:04.4]} 45. Bxe2 {[%clk 0:00:51.8]} 45... Nd4+
{[%clk 0:00:04.4]} 46. Ke5 {[%clk 0:00:44.8]} 46... Nxe2 {[%clk 0:00:05]} 47.
Rb3 {[%clk 0:00:45.1]} 47... Nd4 {[%clk 0:00:04.7]} 48. Rc3 {[%clk 0:00:40.1]}
48... Ne2 {[%clk 0:00:02.9]} 49. Rc7+ {[%clk 0:00:38.1]} 49... Kg6 {[%clk
0:00:02.1]} 50. b5 {[%clk 0:00:38.3]} 50... Ra2 {[%clk 0:00:01.4]} 51. Rc4
{[%clk 0:00:34.1]} 1-0

[Event "*** Titled Tuesday Blitz"]
[Site "Chess.com"]
[Date "2021.04.20"]
[Round "4"]
[White "Shahaliyev"]
[Black "platy3"]
[Result "0-1"]
[WhiteElo "2681"]
[BlackElo "2849"]
[TimeControl "180+1"]
[EndTime "10:38:09 PDT"]
[Termination "platy3 won by resignation"]

1. e4 {[%clk 0:02:35.4]} 1... c5 {[%clk 0:02:59.6]} 2. Nf3 {[%clk 0:02:35.3]}
2... e6 {[%clk 0:02:59.7]} 3. d4 {[%clk 0:02:34.1]} 3... cxd4 {[%clk 0:03:00.6]}
4. Nxd4 {[%clk 0:02:34.5]} 4... Nc6 {[%clk 0:03:00.9]} 5. Nc3 {[%clk 0:02:34.8]}
5... Qc7 {[%clk 0:03:01.3]} 6. g3 {[%clk 0:02:32.3]} 6... a6 {[%clk 0:03:01.3]}
7. Bg2 {[%clk 0:02:32.2]} 7... Nf6 {[%clk 0:03:01.2]} 8. O-O {[%clk 0:02:30.2]}
8... Nxd4 {[%clk 0:03:01.5]} 9. Qxd4 {[%clk 0:02:29.5]} 9... Bc5 {[%clk
0:03:02.1]} 10. Qd1 {[%clk 0:02:16.8]} 10... d6 {[%clk 0:02:50.9]} 11. Bg5
{[%clk 0:01:41.7]} 11... Nd7 {[%clk 0:02:36.5]} 12. Na4 {[%clk 0:01:38.2]} 12...
Ba7 {[%clk 0:02:34.2]} 13. c4 {[%clk 0:01:38.3]} 13... Ne5 {[%clk 0:02:23.1]}
14. Rc1 {[%clk 0:01:36]} 14... O-O {[%clk 0:02:20.3]} 15. b3 {[%clk 0:01:12.1]}
15... h6 {[%clk 0:02:17.3]} 16. Bd2 {[%clk 0:00:59.3]} 16... Rd8 {[%clk
0:02:03.8]} 17. Qe2 {[%clk 0:00:58.4]} 17... Bd7 {[%clk 0:02:03]} 18. Nc3 {[%clk
0:00:58.1]} 18... Rac8 {[%clk 0:02:00.4]} 19. Be3 {[%clk 0:00:57.9]} 19... Bxe3
{[%clk 0:01:48]} 20. Qxe3 {[%clk 0:00:58.8]} 20... Qa5 {[%clk 0:01:27.4]} 21.
Rfd1 {[%clk 0:00:56.9]} 21... Bc6 {[%clk 0:01:27.4]} 22. h3 {[%clk 0:00:52]}
22... b5 {[%clk 0:01:24.9]} 23. cxb5 {[%clk 0:00:43.6]} 23... axb5 {[%clk
0:01:25.8]} 24. f4 {[%clk 0:00:40.7]} 24... Ng6 {[%clk 0:01:25.6]} 25. Rc2
{[%clk 0:00:30.3]} 25... Bb7 {[%clk 0:01:16.6]} 26. Rdc1 {[%clk 0:00:29.8]}
26... Rc7 {[%clk 0:01:07.4]} 27. b4 {[%clk 0:00:22.8]} 27... Qa6 {[%clk
0:00:54.9]} 28. Ne2 {[%clk 0:00:16.6]} 28... Rxc2 {[%clk 0:00:51.6]} 29. Rxc2
{[%clk 0:00:17.5]} 29... Qa4 {[%clk 0:00:45]} 30. Qd2 {[%clk 0:00:17.9]} 30...
Qa7+ {[%clk 0:00:31.6]} 31. Kh2 {[%clk 0:00:18.1]} 31... e5 {[%clk 0:00:26.7]}
32. f5 {[%clk 0:00:18]} 32... Ne7 {[%clk 0:00:25.5]} 33. Rc7 {[%clk 0:00:17.7]}
33... Nc6 {[%clk 0:00:23.8]} 34. Nc3 {[%clk 0:00:18.1]} 34... Qb8 {[%clk
0:00:19.1]} 35. Nd5 {[%clk 0:00:17.3]} 35... Nd4 {[%clk 0:00:19.7]} 36. Ne7+
{[%clk 0:00:11.2]} 36... Kf8 {[%clk 0:00:18.4]} 37. Qc3 {[%clk 0:00:09.7]} 37...
Qa8 {[%clk 0:00:15.8]} 38. f6 {[%clk 0:00:09.8]} 38... Bxe4 {[%clk 0:00:14]} 39.
fxg7+ {[%clk 0:00:10.2]} 39... Kxg7 {[%clk 0:00:14.8]} 40. Bf1 {[%clk
0:00:08.5]} 40... Qxa2+ {[%clk 0:00:14]} 41. Kg1 {[%clk 0:00:07.7]} 41... Nf3+
{[%clk 0:00:14]} 0-1

[Event "*** Titled Tuesday Blitz"]
[Site "Chess.com"]
[Date "2021.04.20"]
[Round "4"]
[White "GMJustin"]
[Black "halldorgretar"]
[Result "1-0"]
[WhiteElo "2309"]
[BlackElo "2136"]
[TimeControl "180+1"]
[EndTime "10:38:09 PDT"]
[Termination "GMJustin won on time"]

1. e4 {[%clk 0:02:51.8]} 1... e5 {[%clk 0:02:59.3]} 2. Nf3 {[%clk 0:02:50.8]}
2... Nc6 {[%clk 0:02:58.9]} 3. Bc4 {[%clk 0:02:49.9]} 3... Bc5 {[%clk
0:02:56.5]} 4. b4 {[%clk 0:02:49.4]} 4... Bb6 {[%clk 0:02:53.1]} 5. Bb2 {[%clk
0:02:43]} 5... d6 {[%clk 0:02:44.1]} 6. b5 {[%clk 0:02:34.5]} 6... Na5 {[%clk
0:02:42.1]} 7. Be2 {[%clk 0:02:29.3]} 7... Nf6 {[%clk 0:02:26.2]} 8. Nc3 {[%clk
0:02:26.3]} 8... O-O {[%clk 0:02:23.1]} 9. O-O {[%clk 0:02:25.4]} 9... h6 {[%clk
0:02:17]} 10. a4 {[%clk 0:02:16.8]} 10... Re8 {[%clk 0:02:06.2]} 11. d3 {[%clk
0:02:07.9]} 11... a6 {[%clk 0:01:44.8]} 12. Nd2 {[%clk 0:01:38.3]} 12... d5
{[%clk 0:01:28.6]} 13. exd5 {[%clk 0:01:29.4]} 13... Nxd5 {[%clk 0:01:27.7]} 14.
Nxd5 {[%clk 0:01:27.6]} 14... Qxd5 {[%clk 0:01:26.6]} 15. Bf3 {[%clk 0:01:25.4]}
15... Qd8 {[%clk 0:01:25.3]} 16. Re1 {[%clk 0:01:09.8]} 16... Bd4 {[%clk
0:00:41.9]} 17. Bxd4 {[%clk 0:01:04.8]} 17... Qxd4 {[%clk 0:00:41]} 18. Qe2
{[%clk 0:00:50.2]} 18... Bf5 {[%clk 0:00:37.2]} 19. Qe3 {[%clk 0:00:43]} 19...
Rad8 {[%clk 0:00:35.1]} 20. Qxd4 {[%clk 0:00:23.7]} 20... Rxd4 {[%clk
0:00:31.8]} 21. bxa6 {[%clk 0:00:14.4]} 21... bxa6 {[%clk 0:00:31.5]} 22. Ne4
{[%clk 0:00:14.4]} 22... Bxe4 {[%clk 0:00:17.9]} 23. Bxe4 {[%clk 0:00:14.8]}
23... c5 {[%clk 0:00:17.1]} 24. c3 {[%clk 0:00:13.3]} 24... Rd6 {[%clk
0:00:15.9]} 25. Rab1 {[%clk 0:00:12.5]} 25... c4 {[%clk 0:00:14.9]} 26. dxc4
{[%clk 0:00:08.1]} 26... Nxc4 {[%clk 0:00:14.3]} 27. Rb7 {[%clk 0:00:07.1]}
27... Nd2 {[%clk 0:00:11.3]} 28. Bc2 {[%clk 0:00:05.3]} 28... g6 {[%clk
0:00:06.6]} 29. f3 {[%clk 0:00:04.7]} 29... Kg7 {[%clk 0:00:04.8]} 30. Re3
{[%clk 0:00:04.1]} 30... Kf6 {[%clk 0:00:04.3]} 31. Kf2 {[%clk 0:00:03.9]} 31...
Rc8 {[%clk 0:00:03.5]} 32. Ra7 {[%clk 0:00:02.9]} 32... Nc4 {[%clk 0:00:02]} 33.
Re2 {[%clk 0:00:02.6]} 1-0

[Event "*** Titled Tuesday Blitz"]
[Site "Chess.com"]
[Date "2021.04.20"]
[Round "4"]
[White "mr65"]
[Black "Keks2017"]
[Result "0-1"]
[WhiteElo "2132"]
[BlackElo "2474"]
[TimeControl "180+1"]
[EndTime "10:38:10 PDT"]
[Termination "Keks2017 won on time"]

1. e4 {[%clk 0:03:00.9]} 1... c5 {[%clk 0:02:56.1]} 2. Nf3 {[%clk 0:02:59.8]}
2... d6 {[%clk 0:02:56]} 3. d4 {[%clk 0:02:59.7]} 3... cxd4 {[%clk 0:02:56.1]}
4. Nxd4 {[%clk 0:02:59.8]} 4... Nf6 {[%clk 0:02:56.3]} 5. Nc3 {[%clk 0:03:00.2]}
5... a6 {[%clk 0:02:55.7]} 6. f4 {[%clk 0:03:00]} 6... e6 {[%clk 0:02:54]} 7.
Bd3 {[%clk 0:02:55.1]} 7... Qc7 {[%clk 0:02:53.6]} 8. a4 {[%clk 0:02:53.2]} 8...
Nbd7 {[%clk 0:02:53.4]} 9. Nf3 {[%clk 0:02:53]} 9... Nc5 {[%clk 0:02:52.7]} 10.
O-O {[%clk 0:02:51.4]} 10... Nxd3 {[%clk 0:02:52.2]} 11. cxd3 {[%clk 0:02:50.6]}
11... Be7 {[%clk 0:02:51.4]} 12. d4 {[%clk 0:02:47.9]} 12... O-O {[%clk
0:02:48.2]} 13. e5 {[%clk 0:02:45]} 13... dxe5 {[%clk 0:02:48]} 14. fxe5 {[%clk
0:02:40.1]} 14... Nd5 {[%clk 0:02:47.9]} 15. Ne4 {[%clk 0:02:26.6]} 15... Bd7
{[%clk 0:02:33]} 16. Bg5 {[%clk 0:02:24]} 16... Rad8 {[%clk 0:02:25.1]} 17. Qd3
{[%clk 0:02:07.8]} 17... h6 {[%clk 0:01:56.2]} 18. Bxe7 {[%clk 0:02:02.3]} 18...
Nxe7 {[%clk 0:01:55.5]} 19. Nfg5 {[%clk 0:01:29.5]} 19... Ng6 {[%clk 0:00:59.7]}
20. Nxf7 {[%clk 0:01:14.1]} 20... Rxf7 {[%clk 0:00:56.4]} 21. Rxf7 {[%clk
0:01:12.7]} 21... Nxe5 {[%clk 0:00:30.7]} 22. dxe5 {[%clk 0:00:51.8]} 22... Kxf7
{[%clk 0:00:26.4]} 23. Rf1+ {[%clk 0:00:40]} 23... Kg8 {[%clk 0:00:17.9]} 24.
Qd6 {[%clk 0:00:13.5]} 24... Qxd6 {[%clk 0:00:16.5]} 25. Nxd6 {[%clk 0:00:12.7]}
25... Bxa4 {[%clk 0:00:16.1]} 26. Rc1 {[%clk 0:00:09.3]} 26... Bc6 {[%clk
0:00:15.1]} 27. g3 {[%clk 0:00:08.8]} 27... Rf8 {[%clk 0:00:15]} 28. Nc4 {[%clk
0:00:07.2]} 28... Rf3 {[%clk 0:00:12.7]} 29. Na5 {[%clk 0:00:06.2]} 29... Bd5
{[%clk 0:00:11]} 30. Rc7 {[%clk 0:00:05.7]} 30... Re3 {[%clk 0:00:10]} 31. Nxb7
{[%clk 0:00:04.3]} 31... Rxe5 {[%clk 0:00:09.9]} 32. Nd8 {[%clk 0:00:02.3]}
32... Re2 {[%clk 0:00:08.9]} 33. Kf1 {[%clk 0:00:01.4]} 33... Rxh2 {[%clk
0:00:08.2]} 34. Ke1 {[%clk 0:00:01.4]} 34... Rxb2 {[%clk 0:00:07.1]} 35. Kd1
{[%clk 0:00:02.3]} 35... a5 {[%clk 0:00:06.9]} 36. Re7 {[%clk 0:00:01.4]} 36...
Rg2 {[%clk 0:00:07.8]} 37. Nf7 {[%clk 0:00:01.3]} 37... Rxg3 {[%clk 0:00:06.8]}
38. Ne5 {[%clk 0:00:01.2]} 38... a4 {[%clk 0:00:06.7]} 0-1